[Event "Championnat d'Europe de Blitz"]
[Date "2024.12.09"]
[White "Goraj, Barbara"]
[Black "Schneider, Ilja"]
[WhiteElo "2178"]
[BlackElo "2414"]
[Round "11.33"]
[Result "0-1"]
[TimeControl "180+2"]

1. e4 {[%emt 00:00:01] [%clk 00:03:02]} e5 {[%emt 00:00:02] [%clk 00:03:03]} 2.
Nf3 {[%clk 00:03:03]} Nc6 {[%clk 00:03:05]} 3. Nc3 {[%emt 00:00:02] [%clk
00:03:03]} Nf6 {[%clk 00:03:06]} 4. a3 {[%emt 00:00:01] [%clk 00:03:04]} g6
{[%emt 00:00:06] [%clk 00:03:01]} 5. d4 {[%emt 00:00:09] [%clk 00:02:57]} exd4
{[%emt 00:00:02] [%clk 00:03:01]} 6. Nxd4 {[%emt 00:00:02] [%clk 00:02:58]} Bg7
{[%emt 00:00:03] [%clk 00:03:01]} 7. Nxc6 {[%emt 00:00:03] [%clk 00:02:57]} bxc6
{[%emt 00:00:01] [%clk 00:03:02]} 8. Bd3 {[%emt 00:00:10] [%clk 00:02:48]} O-O
{[%emt 00:00:03] [%clk 00:03:01]} 9. O-O {[%emt 00:00:03] [%clk 00:02:48]} d6
{[%emt 00:00:11] [%clk 00:02:52]} 10. f3 {[%emt 00:00:12] [%clk 00:02:38]} Nd7
{[%emt 00:00:13] [%clk 00:02:41]} 11. Be3 {[%emt 00:00:05] [%clk 00:02:34]} Ne5
{[%emt 00:00:08] [%clk 00:02:35]} 12. Qd2 {[%emt 00:00:06] [%clk 00:02:30]} d5
{[%emt 00:00:14] [%clk 00:02:24]} 13. Na4 {[%emt 00:00:32] [%clk 00:02:00]} Re8
{[%emt 00:00:50] [%clk 00:01:36]} 14. Rad1 {[%emt 00:00:06] [%clk 00:01:56]} Be6
{[%emt 00:00:20] [%clk 00:01:18]} 15. Nc5 {[%emt 00:00:14] [%clk 00:01:43]} Qd6
{[%emt 00:00:29] [%clk 00:00:52]} 16. h3 {[%emt 00:00:11] [%clk 00:01:33]} d4
{[%emt 00:00:03] [%clk 00:00:51]} 17. Nb7 {[%emt 00:00:17] [%clk 00:01:18]} dxe3
{[%emt 00:00:02] [%clk 00:00:52]} 18. Nxd6 {[%emt 00:00:01] [%clk 00:01:18]}
exd2 {[%emt 00:00:02] [%clk 00:00:52]} 19. Nxe8 {[%emt 00:00:01] [%clk
00:01:19]} Rxe8 {[%emt 00:00:04] [%clk 00:00:51]} 20. Rxd2 {[%emt 00:00:01]
[%clk 00:01:20]} Rb8 {[%emt 00:00:10] [%clk 00:00:43]} 21. b3 {[%emt 00:00:05]
[%clk 00:01:17]} c5 {[%emt 00:00:04] [%clk 00:00:40]} 22. Be2 {[%emt 00:00:13]
[%clk 00:01:06]} Nc6 {[%emt 00:00:02] [%clk 00:00:40]} 23. f4 {[%emt 00:00:12]
[%clk 00:00:56]} Bc3 {[%emt 00:00:10] [%clk 00:00:32]} 24. Rdd1 {[%emt 00:00:10]
[%clk 00:00:48]} Bb2 {[%emt 00:00:16] [%clk 00:00:18]} 25. f5 {[%emt 00:00:06]
[%clk 00:00:44]} gxf5 {[%emt 00:00:09] [%clk 00:00:12]} 26. exf5 {[%emt
00:00:01] [%clk 00:00:45]} Bc8 {[%clk 00:00:13]} 27. a4 {[%emt 00:00:22] [%clk
00:00:26]} Bd4+ {[%emt 00:00:02] [%clk 00:00:12]} 28. Kh1 {[%emt 00:00:01] [%clk
00:00:26]} f6 {[%emt 00:00:02] [%clk 00:00:12]} 29. Bc4+ {[%clk 00:00:27]} Kf8
{[%emt 00:00:01] [%clk 00:00:13]} 30. Rf4 {[%emt 00:00:16] [%clk 00:00:13]} Ne5
{[%emt 00:00:02] [%clk 00:00:14]} 31. Rh4 {[%emt 00:00:10] [%clk 00:00:05]} Nxc4
{[%emt 00:00:04] [%clk 00:00:12]} 32. bxc4 {[%emt 00:00:02] [%clk 00:00:05]}
Bxf5 {[%emt 00:00:02] [%clk 00:00:12]} 33. Rf4 {[%emt 00:00:03] [%clk 00:00:04]}
Bxc2 {[%emt 00:00:03] [%clk 00:00:11]} 34. Re1 {[%emt 00:00:02] [%clk 00:00:04]}
Kf7 {[%emt 00:00:02] [%clk 00:00:11]} 35. h4 {[%emt 00:00:04] [%clk 00:00:03]}
Rb1 {[%emt 00:00:04] [%clk 00:00:08]} 36. Rxb1 {[%emt 00:00:02] [%clk 00:00:03]}
Bxb1 {[%clk 00:00:10]} 37. g4 {[%emt 00:00:02] [%clk 00:00:03]} Bd3 {[%emt
00:00:02] [%clk 00:00:10]} 38. g5 {[%emt 00:00:02] [%clk 00:00:03]} Bxc4 {[%emt
00:00:02] [%clk 00:00:10]} 39. gxf6 {[%emt 00:00:01] [%clk 00:00:03]} Bd5+
{[%clk 00:00:11]} 0-1

[Site "Europe Echecs"]

[Event "Championnat d'Europe de Blitz"]
[Date "2024.12.09"]
[White "Costachi, Mihnea"]
[Black "Zlatkov, Anton"]
[WhiteElo "2464"]
[BlackElo "2324"]
[Round "11.34"]
[Result "1-0"]
[TimeControl "180+2"]

1. d4 {[%emt 00:14:50] [%clk 00:03:03]} Nf6 {[%clk 00:03:04]} 2. c4 {[%emt
00:00:01] [%clk 00:03:04]} e6 {[%emt 00:00:02] [%clk 00:03:05]} 3. Nf3 {[%clk
00:03:05]} Bb4+ {[%clk 00:03:05]} 4. Bd2 {[%clk 00:03:06]} Qe7 {[%clk 00:03:07]}
5. g3 {[%clk 00:03:07]} Nc6 {[%clk 00:03:08]} 6. Nc3 {[%emt 00:00:02] [%clk
00:03:07]} Bxc3 {[%emt 00:00:03] [%clk 00:03:07]} 7. Bxc3 Ne4 8. Rc1 {[%emt
00:00:02] [%clk 00:03:05]} O-O {[%emt 00:00:03] [%clk 00:03:06]} 9. Bg2 {[%clk
00:03:06]} f5 {[%emt 00:00:03] [%clk 00:03:05]} 10. O-O {[%emt 00:00:03] [%clk
00:03:05]} d6 {[%emt 00:00:01] [%clk 00:03:06]} 11. d5 {[%emt 00:00:09] [%clk
00:02:58]} Nd8 {[%clk 00:03:08]} 12. dxe6 {[%emt 00:00:05] [%clk 00:02:54]} Nxe6
{[%emt 00:00:01] [%clk 00:03:08]} 13. Nd4 {[%emt 00:00:04] [%clk 00:02:52]} Bd7
{[%emt 00:00:22] [%clk 00:02:49]} 14. Nxf5 {[%emt 00:00:07] [%clk 00:02:46]}
Rxf5 {[%emt 00:00:14] [%clk 00:02:36]} 15. Bxe4 {[%emt 00:00:01] [%clk
00:02:47]} Rh5 {[%emt 00:00:17] [%clk 00:02:22]} 16. e3 {[%emt 00:00:26] [%clk
00:02:23]} Rh6 {[%emt 00:00:15] [%clk 00:02:09]} 17. Bxb7 {[%emt 00:00:06] [%clk
00:02:19]} Rf8 {[%emt 00:00:07] [%clk 00:02:04]} 18. f4 {[%emt 00:00:10] [%clk
00:02:11]} Nc5 {[%emt 00:00:23] [%clk 00:01:43]} 19. Bd5+ {[%emt 00:00:03] [%clk
00:02:10]} Kh8 {[%emt 00:00:01] [%clk 00:01:43]} 20. Qd4 {[%emt 00:00:07] [%clk
00:02:05]} Bf5 {[%emt 00:00:08] [%clk 00:01:37]} 21. e4 {[%emt 00:00:13] [%clk
00:01:55]} Bxe4 {[%emt 00:00:30] [%clk 00:01:09]} 22. Rce1 {[%emt 00:00:17]
[%clk 00:01:39]} Re8 {[%emt 00:00:12] [%clk 00:00:59]} 23. Bxe4 {[%emt 00:00:01]
[%clk 00:01:40]} Nxe4 {[%emt 00:00:02] [%clk 00:00:59]} 24. Rxe4 {[%emt
00:00:02] [%clk 00:01:40]} 1-0

[Site "Europe Echecs"]

[Event "Championnat d'Europe de Blitz"]
[Date "2024.12.09"]
[White "Lagarde, Maxime"]
[Black "Aliyev, Elnur"]
[WhiteElo "2600"]
[BlackElo "2079"]
[Round "11.35"]
[Result "1-0"]
[TimeControl "180+2"]

1. d4 {[%emt 00:00:03] [%clk 00:03:02]} Nf6 {[%emt 00:00:02] [%clk 00:03:00]} 2.
Nf3 {[%emt 00:00:01] [%clk 00:03:03]} e6 {[%emt 00:00:05] [%clk 00:02:58]} 3.
Bg5 {[%emt 00:00:01] [%clk 00:03:04]} h6 {[%emt 00:00:02] [%clk 00:02:58]} 4.
Bh4 {[%emt 00:00:01] [%clk 00:03:04]} d5 {[%emt 00:00:13] [%clk 00:02:47]} 5. e3
{[%emt 00:00:03] [%clk 00:03:03]} Be7 {[%emt 00:00:14] [%clk 00:02:35]} 6. Nbd2
{[%emt 00:00:05] [%clk 00:03:01]} b6 {[%emt 00:00:06] [%clk 00:02:32]} 7. c3
{[%emt 00:00:04] [%clk 00:02:58]} O-O {[%emt 00:00:06] [%clk 00:02:28]} 8. Bd3
{[%emt 00:00:16] [%clk 00:02:44]} Ba6 {[%emt 00:00:02] [%clk 00:02:28]} 9. Bb1
{[%emt 00:00:06] [%clk 00:02:39]} Nbd7 {[%emt 00:00:12] [%clk 00:02:18]} 10. Qc2
{[%emt 00:00:05] [%clk 00:02:36]} Bb7 {[%emt 00:01:00] [%clk 00:01:20]} 11. Bxf6
{[%emt 00:00:14] [%clk 00:02:24]} Nxf6 {[%emt 00:00:03] [%clk 00:01:19]} 12. Ne5
{[%emt 00:00:01] [%clk 00:02:25]} Qe8 {[%emt 00:00:40] [%clk 00:00:41]} 13. h4
{[%emt 00:00:11] [%clk 00:02:15]} h5 {[%emt 00:00:16] [%clk 00:00:28]} 14. f3
{[%emt 00:00:47] [%clk 00:01:30]} g6 {[%emt 00:00:03] [%clk 00:00:27]} 15. g4
{[%emt 00:00:05] [%clk 00:01:27]} Bd6 {[%emt 00:00:06] [%clk 00:00:24]} 16. Rg1
{[%emt 00:00:23] [%clk 00:01:06]} Kh8 {[%emt 00:00:15] [%clk 00:00:11]} 17. gxh5
{[%emt 00:00:08] [%clk 00:00:59]} Bxe5 {[%emt 00:00:03] [%clk 00:00:11]} 18.
hxg6 {[%emt 00:00:11] [%clk 00:00:49]} Ne4 {[%emt 00:00:09] [%clk 00:00:04]} 19.
dxe5 {[%emt 00:00:12] [%clk 00:00:39]} fxg6 {[%emt 00:00:03] [%clk 00:00:03]}
20. fxe4 {[%emt 00:00:02] [%clk 00:00:39]} Qe7 {[%emt 00:00:02] [%clk 00:00:03]}
21. exd5 {[%emt 00:00:11] [%clk 00:00:30]} Qxh4+ {[%emt 00:00:01] [%clk
00:00:04]} 22. Kd1 {[%clk 00:00:31]} Qf2 {[%emt 00:00:03] [%clk 00:00:03]} 23.
Rh1+ {[%emt 00:00:05] [%clk 00:00:28]} 1-0

[Site "Europe Echecs"]

[Event "Championnat d'Europe de Blitz"]
[Date "2024.12.09"]
[White "Kadric, Denis"]
[Black "Dragicevic, Drazen"]
[WhiteElo "2544"]
[BlackElo "2332"]
[Round "11.36"]
[Result "1-0"]
[TimeControl "180+2"]

1. e4 {[%emt 00:00:01] [%clk 00:03:03]} c5 {[%emt 00:00:03] [%clk 00:03:02]} 2.
Nc3 {[%clk 00:03:04]} Nc6 {[%emt 00:00:01] [%clk 00:03:02]} 3. Nge2 {[%clk
00:03:05]} Nf6 {[%emt 00:00:14] [%clk 00:02:51]} 4. g3 {[%emt 00:00:05] [%clk
00:03:02]} g6 {[%emt 00:00:11] [%clk 00:02:42]} 5. Bg2 {[%emt 00:00:01] [%clk
00:03:03]} Bg7 {[%clk 00:02:43]} 6. O-O {[%emt 00:00:01] [%clk 00:03:04]} O-O
{[%emt 00:00:01] [%clk 00:02:44]} 7. d3 {[%clk 00:03:05]} d6 {[%emt 00:00:04]
[%clk 00:02:43]} 8. f4 {[%emt 00:00:02] [%clk 00:03:05]} Rb8 {[%emt 00:00:10]
[%clk 00:02:35]} 9. h3 {[%clk 00:03:06]} Nd4 {[%emt 00:00:20] [%clk 00:02:18]}
10. g4 {[%emt 00:00:14] [%clk 00:02:55]} b5 {[%emt 00:00:19] [%clk 00:02:01]}
11. Nxd4 {[%emt 00:00:07] [%clk 00:02:50]} cxd4 {[%emt 00:00:01] [%clk
00:02:03]} 12. Ne2 {[%clk 00:02:51]} Nd7 {[%emt 00:00:08] [%clk 00:01:57]} 13.
Ng3 {[%emt 00:00:04] [%clk 00:02:49]} Qc7 {[%emt 00:00:07] [%clk 00:01:53]} 14.
g5 {[%emt 00:00:08] [%clk 00:02:43]} Bb7 {[%emt 00:00:08] [%clk 00:01:47]} 15.
h4 {[%emt 00:00:06] [%clk 00:02:39]} Rbc8 {[%emt 00:00:11] [%clk 00:01:38]} 16.
Rf2 {[%clk 00:02:40]} a5 {[%emt 00:00:03] [%clk 00:01:38]} 17. h5 {[%emt
00:00:02] [%clk 00:02:40]} Nb6 {[%emt 00:00:15] [%clk 00:01:25]} 18. Bh3 {[%emt
00:00:10] [%clk 00:02:32]} e6 {[%emt 00:00:19] [%clk 00:01:07]} 19. hxg6 {[%emt
00:00:20] [%clk 00:02:14]} hxg6 {[%emt 00:00:01] [%clk 00:01:08]} 20. Bg4 {[%emt
00:00:14] [%clk 00:02:02]} d5 {[%emt 00:00:11] [%clk 00:00:59]} 21. e5 {[%emt
00:00:09] [%clk 00:01:56]} Qe7 {[%emt 00:00:05] [%clk 00:00:56]} 22. a3 {[%emt
00:00:34] [%clk 00:01:25]} Rc7 {[%emt 00:00:02] [%clk 00:00:56]} 23. Qe1 {[%emt
00:00:01] [%clk 00:01:25]} b4 {[%emt 00:00:09] [%clk 00:00:49]} 24. axb4 {[%emt
00:00:04] [%clk 00:01:23]} axb4 {[%emt 00:00:01] [%clk 00:00:50]} 25. Bd2 {[%emt
00:00:01] [%clk 00:01:24]} Rfc8 {[%emt 00:00:07] [%clk 00:00:45]} 26. Bxb4
{[%emt 00:00:01] [%clk 00:01:25]} Qd7 {[%emt 00:00:04] [%clk 00:00:42]} 27. Bd1
{[%emt 00:00:03] [%clk 00:01:24]} Na4 {[%emt 00:00:10] [%clk 00:00:34]} 28. Ra2
{[%emt 00:00:49] [%clk 00:00:37]} Qb5 {[%emt 00:00:01] [%clk 00:00:34]} 29. Ba3
{[%emt 00:00:04] [%clk 00:00:36]} Nc5 {[%emt 00:00:06] [%clk 00:00:31]} 30. Rh2
{[%emt 00:00:03] [%clk 00:00:35]} Nxd3 {[%emt 00:00:08] [%clk 00:00:25]} 31. Qf1
{[%clk 00:00:36]} Ba6 {[%emt 00:00:21] [%clk 00:00:06]} 32. Qh3 {[%emt 00:00:01]
[%clk 00:00:37]} f5 {[%emt 00:00:04] [%clk 00:00:04]} 33. gxf6 {[%emt 00:00:01]
[%clk 00:00:38]} Kf7 {[%emt 00:00:01] [%clk 00:00:04]} 34. fxg7 {[%emt 00:00:22]
[%clk 00:00:18]} Nxf4 {[%clk 00:00:05]} 35. Rf2 {[%emt 00:00:05] [%clk
00:00:15]} g5 {[%clk 00:00:07]} 36. Qh6 {[%emt 00:00:05] [%clk 00:00:12]} 1-0

[Site "Europe Echecs"]

[Event "Championnat d'Europe de Blitz"]
[Date "2024.12.09"]
[White "Boci, Mateu"]
[Black "Smeets, Jan"]
[WhiteElo "2176"]
[BlackElo "2552"]
[Round "11.37"]
[Result "0-1"]
[TimeControl "180+2"]

1. e4 {[%emt 00:00:01] [%clk 00:03:02]} c6 {[%emt 00:00:03] [%clk 00:03:04]} 2.
d4 {[%clk 00:03:02]} d5 {[%clk 00:03:05]} 3. Nc3 {[%clk 00:03:03]} b5 {[%emt
00:00:04] [%clk 00:03:03]} 4. exd5 {[%emt 00:00:07] [%clk 00:02:57]} b4 {[%emt
00:00:02] [%clk 00:03:04]} 5. Ne4 {[%clk 00:02:58]} cxd5 {[%emt 00:00:04] [%clk
00:03:02]} 6. Ng3 {[%clk 00:02:59]} e6 {[%emt 00:00:08] [%clk 00:02:56]} 7. Nf3
{[%emt 00:00:02] [%clk 00:02:59]} Nf6 {[%emt 00:00:03] [%clk 00:02:56]} 8. Bd3
{[%emt 00:00:03] [%clk 00:02:57]} a5 {[%emt 00:00:04] [%clk 00:02:54]} 9. O-O
{[%emt 00:00:03]} Ba6 {[%clk 00:02:54]} 10. Bf4 {[%emt 00:00:06] [%clk
00:02:53]} Be7 {[%emt 00:00:12] [%clk 00:02:44]} 11. Re1 {[%emt 00:00:05] [%clk
00:02:50]} O-O {[%emt 00:00:10]} 12. Ne5 {[%clk 00:02:49]} Qb6 {[%emt 00:00:29]
[%clk 00:02:13]} 13. Bxa6 {[%emt 00:00:06] [%clk 00:02:45]} Qxa6 {[%emt
00:00:02] [%clk 00:02:14]} 14. Bg5 {[%emt 00:00:12] [%clk 00:02:34]} Re8 {[%emt
00:00:08] [%clk 00:02:08]} 15. Bxf6 {[%emt 00:00:17] [%clk 00:02:19]} Bxf6
{[%emt 00:00:03] [%clk 00:02:07]} 16. Qg4 {[%clk 00:02:20]} Bxe5 {[%emt
00:00:45] [%clk 00:01:23]} 17. dxe5 {[%emt 00:00:01] [%clk 00:02:21]} Qc4 {[%emt
00:00:04] [%clk 00:01:22]} 18. f4 {[%emt 00:00:11]} Nd7 {[%emt 00:00:38] [%clk
00:00:44]} 19. Rad1 {[%emt 00:00:35] [%clk 00:01:41]} Qxc2 {[%emt 00:00:14]
[%clk 00:00:32]} 20. f5 {[%emt 00:00:05] [%clk 00:01:38]} Rac8 {[%emt 00:00:04]
[%clk 00:00:30]} 21. Kh1 {[%emt 00:00:17] [%clk 00:01:22]} Qxb2 {[%emt 00:00:22]
[%clk 00:00:11]} 22. f6 {[%emt 00:00:57] [%clk 00:00:27]} Nxf6 {[%emt 00:00:01]
[%clk 00:00:12]} 23. exf6 {[%emt 00:00:03] [%clk 00:00:26]} Qxf6 {[%clk
00:00:13]} 24. Rf1 {[%emt 00:00:04] [%clk 00:00:24]} Qg6 {[%clk 00:00:14]} 25.
Qf3 {[%emt 00:00:12] [%clk 00:00:14]} Rc3 {[%clk 00:00:15]} 26. Qe2 {[%emt
00:00:06] [%clk 00:00:10]} Rec8 {[%emt 00:00:04] [%clk 00:00:13]} 27. Nh5 {[%emt
00:00:05] [%clk 00:00:06]} Rc2 {[%emt 00:00:02] [%clk 00:00:14]} 28. Qf3 {[%emt
00:00:03] [%clk 00:00:05]} R8c3 {[%emt 00:00:01] [%clk 00:00:14]} 29. Nf4 {[%emt
00:00:03] [%clk 00:00:04]} Rxf3 {[%emt 00:00:02] [%clk 00:00:14]} 30. Rxf3
{[%emt 00:00:02] [%clk 00:00:03]} Qe4 {[%emt 00:00:02] [%clk 00:00:14]} 31. Rdf1
{[%emt 00:00:02] [%clk 00:00:04]} h6 {[%emt 00:00:03] [%clk 00:00:13]} 32. Nh5
{[%emt 00:00:02] [%clk 00:00:04]} Qg6 {[%emt 00:00:03] [%clk 00:00:12]} 33. Nxg7
{[%emt 00:00:02] [%clk 00:00:04]} Qxg2# {[%emt 00:00:01] [%clk 00:00:13]} 0-1

[Site "Europe Echecs"]

[Event "Championnat d'Europe de Blitz"]
[Date "2024.12.09"]
[White "Koelle, Tobias"]
[Black "Andonovski, Ljubisa"]
[WhiteElo "2437"]
[BlackElo "2253"]
[Round "11.38"]
[Result "1-0"]
[TimeControl "180+2"]

1. d4 {[%clk 00:03:03]} Nf6 {[%emt 00:00:03] [%clk 00:03:01]} 2. c4 {[%clk
00:03:04]} e6 {[%emt 00:00:01] [%clk 00:03:02]} 3. Nf3 {[%clk 00:03:05]} d5
{[%emt 00:00:06] [%clk 00:02:58]} 4. Nc3 {[%emt 00:00:01] [%clk 00:03:06]} Bb4
{[%emt 00:00:08] [%clk 00:02:52]} 5. Bg5 {[%emt 00:00:02] [%clk 00:03:06]} h6
{[%emt 00:00:01] [%clk 00:02:53]} 6. Bxf6 {[%clk 00:03:07]} Qxf6 {[%emt
00:00:02] [%clk 00:02:53]} 7. Qa4+ {[%emt 00:00:01] [%clk 00:03:09]} Nc6 {[%emt
00:00:02] [%clk 00:02:53]} 8. e3 {[%clk 00:03:10]} O-O {[%emt 00:00:08] [%clk
00:02:46]} 9. Rc1 {[%emt 00:00:01] [%clk 00:03:10]} a6 {[%emt 00:00:14] [%clk
00:02:35]} 10. a3 {[%emt 00:00:04] [%clk 00:03:09]} Bxc3+ {[%emt 00:00:22] [%clk
00:02:14]} 11. Rxc3 {[%emt 00:00:01] [%clk 00:03:09]} dxc4 {[%emt 00:00:30]
[%clk 00:01:46]} 12. Qxc4 {[%emt 00:00:13] [%clk 00:02:59]} Bd7 {[%emt 00:00:10]
[%clk 00:01:38]} 13. Be2 {[%emt 00:00:01] [%clk 00:03:00]} Rac8 {[%emt 00:00:17]
[%clk 00:01:22]} 14. O-O {[%emt 00:00:08] [%clk 00:02:55]} e5 {[%emt 00:00:05]
[%clk 00:01:19]} 15. d5 {[%emt 00:00:02] [%clk 00:02:55]} Ne7 {[%clk 00:01:20]}
16. Qb3 {[%emt 00:00:17] [%clk 00:02:40]} Bg4 {[%emt 00:00:33] [%clk 00:00:48]}
17. h3 {[%emt 00:00:06] [%clk 00:02:37]} Bxf3 {[%emt 00:00:05] [%clk 00:00:44]}
18. Bxf3 {[%emt 00:00:02] [%clk 00:02:38]} b6 {[%emt 00:00:07] [%clk 00:00:39]}
19. Be2 {[%emt 00:00:03] [%clk 00:02:37]} a5 {[%emt 00:00:03] [%clk 00:00:38]}
20. Ba6 {[%emt 00:00:02] [%clk 00:02:37]} Ra8 {[%emt 00:00:01] [%clk 00:00:35]}
21. Bb5 {[%emt 00:00:22] [%clk 00:02:21]} Qd6 {[%emt 00:00:03] [%clk 00:00:34]}
22. e4 {[%clk 00:02:23]} f5 {[%emt 00:00:13] [%clk 00:00:23]} 23. Rfc1 {[%emt
00:00:01] [%clk 00:02:24]} Ra7 {[%emt 00:00:12] [%clk 00:00:14]} 24. Rxc7 {[%emt
00:00:03] [%clk 00:02:22]} Rxc7 {[%emt 00:00:03] [%clk 00:00:12]} 25. Rxc7
{[%emt 00:00:01] [%clk 00:02:23]} fxe4 {[%emt 00:00:04] [%clk 00:00:11]} 26.
Rxe7 {[%emt 00:00:07] [%clk 00:02:18]} 1-0

[Site "Europe Echecs"]